[Event "Titled Tuesday Blitz June 27 Early 2023"]
[White "Zavgorodniy, Sergiy"]
[Black "Avinash Ramesh"]
[WhiteFideId "14110148"]
[BlackFideId "45018340"]
[WhiteElo "2582"]
[BlackElo "2800"]
[Result "1-0"]
[Round "4"]
[TimeControl "180+2"]
[Date "2023.06.27"]
[WhiteClock "0:01:13"]
[BlackClock "0:01:06"]
[Board "57"]

1. d4 {[%clk 0:03:00]}  Nf6 {[%clk 0:03:00]} 2. c4 {[%clk 0:03:00]}  e6 {[%clk 0:03:00]} 3. Nf3 {[%clk 0:03:00]}  d5 {[%clk 0:03:00]} 4. e3 {[%clk 0:03:00]}  Be7 {[%clk 0:02:59]} 5. Nbd2 {[%clk 0:03:00]}  O-O {[%clk 0:03:00]} 6. Bd3 {[%clk 0:03:00]}  b6 {[%clk 0:03:01]} 7. O-O {[%clk 0:03:00]}  Bb7 {[%clk 0:03:01]} 8. Qe2 {[%clk 0:03:01]}  Nbd7 {[%clk 0:03:02]} 9. e4 {[%clk 0:03:02]}  dxe4 {[%clk 0:03:02]} 10. Nxe4 {[%clk 0:03:02]}  Nxe4 {[%clk 0:03:03]} 11. Bxe4 {[%clk 0:03:03]}  Bxe4 {[%clk 0:03:04]} 12. Qxe4 {[%clk 0:03:04]}  c5 {[%clk 0:03:03]} 13. Rd1 {[%clk 0:03:03]}  Nf6 {[%clk 0:03:00]} 14. Qe2 {[%clk 0:03:04]}  cxd4 {[%clk 0:03:01]} 15. Nxd4 {[%clk 0:03:05]}  Qc7 {[%clk 0:03:01]} 16. b3 {[%clk 0:03:05]}  Rad8 {[%clk 0:03:00]} 17. Bb2 {[%clk 0:03:06]}  a6 {[%clk 0:02:55]} 18. Rd3 {[%clk 0:03:06]}  Bc5 {[%clk 0:02:34]} 19. Rad1 {[%clk 0:03:05]}  e5 {[%clk 0:02:28]} 20. Nf5 {[%clk 0:03:02]}  Rxd3 {[%clk 0:02:26]} 21. Qxd3 {[%clk 0:02:54]}  e4 {[%clk 0:02:24]} 22. Qg3 {[%clk 0:02:49]}  Qxg3 {[%clk 0:02:20]} 23. hxg3 {[%clk 0:02:50]}  Ng4 {[%clk 0:02:21]} 24. Bxg7 {[%clk 0:02:31]}  Nxf2 {[%clk 0:02:02]} 25. Rd7 {[%clk 0:02:12]}  e3 {[%clk 0:01:59]} 26. Bc3 {[%clk 0:01:14]}  Re8 {[%clk 0:01:48]} 27. Nh6+ {[%clk 0:01:12]}  Kf8 {[%clk 0:01:06]} 28. Rxf7# {[%clk 0:01:13]} 1-0


[Site "https://www.chess.com"]

[Event "Titled Tuesday Blitz June 27 Early 2023"]
[White "Iskusnyh, Sergei"]
[Black "Vakhlamov, Igor L."]
[WhiteFideId "4120027"]
[BlackFideId "24126748"]
[WhiteElo "2580"]
[BlackElo "2792"]
[Result "1-0"]
[Round "4"]
[TimeControl "180+2"]
[Date "2023.06.27"]
[WhiteClock "0:00:03"]
[BlackClock "0:00:00"]
[Board "58"]

1. d4 {[%clk 0:02:58]}  d5 {[%clk 0:03:00]} 2. c4 {[%clk 0:02:55]}  e6 {[%clk 0:03:00]} 3. Nc3 {[%clk 0:02:54]}  c5 {[%clk 0:03:00]} 4. cxd5 {[%clk 0:02:46]}  cxd4 {[%clk 0:03:01]} 5. Qa4+ {[%clk 0:02:41]}  Bd7 {[%clk 0:03:01]} 6. Qxd4 {[%clk 0:02:41]}  exd5 {[%clk 0:03:02]} 7. Qxd5 {[%clk 0:02:42]}  Nf6 {[%clk 0:03:02]} 8. Qb3 {[%clk 0:02:36]}  Bc5 {[%clk 0:03:03]} 9. Nf3 {[%clk 0:02:31]}  O-O {[%clk 0:03:02]} 10. Bf4 {[%clk 0:02:22]}  Nc6 {[%clk 0:03:01]} 11. e3 {[%clk 0:02:19]}  Nb4 {[%clk 0:02:44]} 12. a3 {[%clk 0:02:10]}  Be6 {[%clk 0:02:42]} 13. Qd1 {[%clk 0:02:09]}  Nbd5 {[%clk 0:02:42]} 14. Be5 {[%clk 0:02:05]}  Qb6 {[%clk 0:02:27]} 15. Nxd5 {[%clk 0:01:55]}  Nxd5 {[%clk 0:02:28]} 16. Be2 {[%clk 0:01:49]}  Rfd8 {[%clk 0:02:20]} 17. Qa4 {[%clk 0:01:46]}  Bxe3 {[%clk 0:01:32]} 18. fxe3 {[%clk 0:01:40]}  Nxe3 {[%clk 0:01:33]} 19. Bd4 {[%clk 0:01:02]}  Rxd4 {[%clk 0:01:09]} 20. Nxd4 {[%clk 0:01:02]}  Rd8 {[%clk 0:01:09]} 21. Nxe6 {[%clk 0:00:46]}  Nxg2+ {[%clk 0:01:08]} 22. Kf1 {[%clk 0:00:46]}  Ne3+ {[%clk 0:01:09]} 23. Ke1 {[%clk 0:00:46]}  fxe6 {[%clk 0:00:42]} 24. Qe4 {[%clk 0:00:37]}  Qxb2 {[%clk 0:00:26]} 25. Rb1 {[%clk 0:00:28]}  Nc2+ {[%clk 0:00:21]} 26. Kf2 {[%clk 0:00:23]}  Rf8+ {[%clk 0:00:21]} 27. Kg3 {[%clk 0:00:22]}  Qc3+ {[%clk 0:00:20]} 28. Bf3 {[%clk 0:00:22]}  Nd4 {[%clk 0:00:20]} 29. Rhf1 {[%clk 0:00:19]}  Qd2 {[%clk 0:00:20]} 30. Rbd1 {[%clk 0:00:17]}  Qg5+ {[%clk 0:00:16]} 31. Bg4 {[%clk 0:00:12]}  Nf5+ {[%clk 0:00:15]} 32. Kh3 {[%clk 0:00:11]}  Qh6+ {[%clk 0:00:14]} 33. Kg2 {[%clk 0:00:10]}  Ne3+ {[%clk 0:00:14]} 34. Kg1 {[%clk 0:00:08]}  Nxf1 {[%clk 0:00:07]} 35. Qxe6+ {[%clk 0:00:06]}  Qxe6 {[%clk 0:00:05]} 36. Bxe6+ {[%clk 0:00:07]}  Kh8 {[%clk 0:00:04]} 37. Rxf1 {[%clk 0:00:08]}  Re8 {[%clk 0:00:05]} 38. Bd5 {[%clk 0:00:08]}  g6 {[%clk 0:00:05]} 39. Bxb7 {[%clk 0:00:08]}  Re7 {[%clk 0:00:06]} 40. Bc6 {[%clk 0:00:07]}  Re6 {[%clk 0:00:06]} 41. Bb5 {[%clk 0:00:07]}  Re5 {[%clk 0:00:06]} 42. a4 {[%clk 0:00:07]}  Kg7 {[%clk 0:00:06]} 43. Rc1 {[%clk 0:00:07]}  Re7 {[%clk 0:00:04]} 44. Rd1 {[%clk 0:00:07]}  Kf6 {[%clk 0:00:02]} 45. Rd7 {[%clk 0:00:07]}  Rxd7 {[%clk 0:00:01]} 46. Bxd7 {[%clk 0:00:08]}  Ke7 {[%clk 0:00:02]} 47. Bb5 {[%clk 0:00:08]}  Kd6 {[%clk 0:00:03]} 48. Kf2 {[%clk 0:00:08]}  Ke5 {[%clk 0:00:03]} 49. Kg3 {[%clk 0:00:08]}  Kf5 {[%clk 0:00:03]} 50. Bd3+ {[%clk 0:00:06]}  Kg5 {[%clk 0:00:04]} 51. Kf3 {[%clk 0:00:05]}  Kh4 {[%clk 0:00:04]} 52. Bf1 {[%clk 0:00:03]}  Kh5 {[%clk 0:00:03]} 53. Kf4 {[%clk 0:00:04]}  Kh4 {[%clk 0:00:04]} 54. Ke4 {[%clk 0:00:03]}  Kg4 {[%clk 0:00:04]} 55. h3+ {[%clk 0:00:02]}  Kg3 {[%clk 0:00:04]} 56. Ke3 {[%clk 0:00:02]}  g5 {[%clk 0:00:04]} 57. Ke2 {[%clk 0:00:03]}  h6 {[%clk 0:00:04]} 58. a5 {[%clk 0:00:03]}  h5 {[%clk 0:00:02]} 59. a6 {[%clk 0:00:03]}  h4 {[%clk 0:00:00]} 60. Ke3 {[%clk 0:00:03]} 1-0


[Site "https://www.chess.com"]

[Event "Titled Tuesday Blitz June 27 Early 2023"]
[White "profedechess93"]
[Black "Maksimovic, Bojan"]
[BlackFideId "14408120"]
[WhiteElo "2572"]
[BlackElo "2773"]
[Result "1/2-1/2"]
[Round "4"]
[TimeControl "180+2"]
[Date "2023.06.27"]
[WhiteClock "0:00:13"]
[BlackClock "0:00:59"]
[Board "63"]

1. e4 {[%clk 0:03:00]}  g6 {[%clk 0:02:57]} 2. d4 {[%clk 0:02:58]}  Nf6 {[%clk 0:02:58]} 3. Nc3 {[%clk 0:02:58]}  d5 {[%clk 0:02:57]} 4. e5 {[%clk 0:02:55]}  Ne4 {[%clk 0:02:57]} 5. Bd3 {[%clk 0:02:49]}  Nxc3 {[%clk 0:02:57]} 6. bxc3 {[%clk 0:02:50]}  c5 {[%clk 0:02:58]} 7. h4 {[%clk 0:02:49]}  Nc6 {[%clk 0:02:51]} 8. Be3 {[%clk 0:02:41]}  c4 {[%clk 0:02:48]} 9. Be2 {[%clk 0:02:38]}  h5 {[%clk 0:02:48]} 10. Qd2 {[%clk 0:02:36]}  Bg7 {[%clk 0:02:48]} 11. Nh3 {[%clk 0:02:29]}  Bf5 {[%clk 0:02:39]} 12. Nf4 {[%clk 0:02:27]}  Bh6 {[%clk 0:02:24]} 13. Rb1 {[%clk 0:01:49]}  Bxf4 {[%clk 0:02:23]} 14. Bxf4 {[%clk 0:01:49]}  Qd7 {[%clk 0:02:23]} 15. O-O {[%clk 0:01:44]}  b6 {[%clk 0:02:20]} 16. Rfe1 {[%clk 0:01:29]}  Nd8 {[%clk 0:02:15]} 17. Bg5 {[%clk 0:01:05]}  Ne6 {[%clk 0:02:15]} 18. Rbc1 {[%clk 0:01:00]}  Rd8 {[%clk 0:02:15]} 19. Qe3 {[%clk 0:00:58]}  Qa4 {[%clk 0:02:15]} 20. Kh2 {[%clk 0:00:54]}  Bxc2 {[%clk 0:02:06]} 21. Bd1 {[%clk 0:00:53]}  Bxd1 {[%clk 0:02:03]} 22. Rexd1 {[%clk 0:00:54]}  Rd7 {[%clk 0:01:58]} 23. Rd2 {[%clk 0:00:52]}  Qa3 {[%clk 0:01:53]} 24. Re1 {[%clk 0:00:52]}  Kf8 {[%clk 0:01:50]} 25. f4 {[%clk 0:00:49]}  Ng7 {[%clk 0:01:46]} 26. e6 {[%clk 0:00:46]}  fxe6 {[%clk 0:01:37]} 27. f5 {[%clk 0:00:46]}  gxf5 {[%clk 0:01:34]} 28. Bh6 {[%clk 0:00:44]}  Qd6+ {[%clk 0:01:32]} 29. Kh1 {[%clk 0:00:38]}  Kf7 {[%clk 0:01:22]} 30. Qg5 {[%clk 0:00:37]}  Rh7 {[%clk 0:01:19]} 31. Rde2 {[%clk 0:00:35]}  Rd8 {[%clk 0:01:05]} 32. Bxg7 {[%clk 0:00:34]}  Rxg7 {[%clk 0:01:06]} 33. Qxh5+ {[%clk 0:00:33]}  Kf6 {[%clk 0:01:07]} 34. Qh6+ {[%clk 0:00:26]}  Kf7 {[%clk 0:00:58]} 35. Rxe6 {[%clk 0:00:26]}  Qg3 {[%clk 0:00:58]} 36. Rxe7+ {[%clk 0:00:24]}  Kg8 {[%clk 0:00:59]} 37. Qe6+ {[%clk 0:00:18]}  Kh8 {[%clk 0:00:59]} 38. Qh6+ {[%clk 0:00:14]}  Kg8 {[%clk 0:00:59]} 39. Qe6+ {[%clk 0:00:14]}  Kh8 {[%clk 0:00:59]} 40. Qh6+ {[%clk 0:00:13]}  Kg8 {[%clk 0:00:59]} 1/2-1/2


[Site "https://www.chess.com"]

[Event "Titled Tuesday Blitz June 27 Early 2023"]
[White "Kilic, Eray"]
[Black "Janaszak, Dawid"]
[WhiteFideId "44517173"]
[BlackFideId "1119206"]
[WhiteElo "2765"]
[BlackElo "2569"]
[Result "1-0"]
[Round "4"]
[TimeControl "180+2"]
[Date "2023.06.27"]
[WhiteClock "0:02:33"]
[BlackClock "0:00:49"]
[Board "65"]

1. e4 {[%clk 0:03:00]}  c5 {[%clk 0:02:58]} 2. Nf3 {[%clk 0:03:00]}  Nc6 {[%clk 0:02:58]} 3. Bb5 {[%clk 0:02:59]}  e5 {[%clk 0:02:58]} 4. O-O {[%clk 0:02:58]}  Nge7 {[%clk 0:02:58]} 5. c3 {[%clk 0:02:57]}  g6 {[%clk 0:02:57]} 6. d4 {[%clk 0:02:55]}  cxd4 {[%clk 0:02:58]} 7. cxd4 {[%clk 0:02:55]}  exd4 {[%clk 0:02:58]} 8. Nxd4 {[%clk 0:02:56]}  Bg7 {[%clk 0:02:59]} 9. Nf3 {[%clk 0:02:53]}  d5 {[%clk 0:02:55]} 10. exd5 {[%clk 0:02:48]}  Qxd5 {[%clk 0:02:56]} 11. Qxd5 {[%clk 0:02:48]}  Nxd5 {[%clk 0:02:57]} 12. Re1+ {[%clk 0:02:49]}  Be6 {[%clk 0:02:54]} 13. Ng5 {[%clk 0:02:47]}  Nb4 {[%clk 0:02:34]} 14. Nxe6 {[%clk 0:02:39]}  fxe6 {[%clk 0:02:32]} 15. Rxe6+ {[%clk 0:02:40]}  Kf7 {[%clk 0:02:20]} 16. Bc4 {[%clk 0:02:38]}  Na5 {[%clk 0:01:54]} 17. Re4+ {[%clk 0:02:36]}  Nxc4 {[%clk 0:01:54]} 18. Rxc4 {[%clk 0:02:37]}  Rac8 {[%clk 0:01:46]} 19. Rf4+ {[%clk 0:02:36]}  Ke6 {[%clk 0:01:30]} 20. Nc3 {[%clk 0:02:34]}  Bxc3 {[%clk 0:01:08]} 21. bxc3 {[%clk 0:02:35]}  Nd3 {[%clk 0:01:08]} 22. Re4+ {[%clk 0:02:35]}  Kf5 {[%clk 0:01:08]} 23. Re3 {[%clk 0:02:34]}  Rhe8 {[%clk 0:01:05]} 24. g4+ {[%clk 0:02:33]}  Kxg4 {[%clk 0:01:01]} 25. Rxd3 {[%clk 0:02:33]}  Re1+ {[%clk 0:00:49]} 26. Kg2 {[%clk 0:02:33]} 1-0


[Site "https://www.chess.com"]

[Event "Titled Tuesday Blitz June 27 Early 2023"]
[White "Ambartsumova, Karina"]
[Black "Panesar Vedant"]
[WhiteFideId "4166299"]
[BlackFideId "35033018"]
[WhiteElo "2566"]
[BlackElo "2751"]
[Result "1-0"]
[Round "4"]
[TimeControl "180+2"]
[Date "2023.06.27"]
[WhiteClock "0:00:12"]
[BlackClock "0:00:07"]
[Board "67"]

1. Nf3 {[%clk 0:03:00]}  Nf6 {[%clk 0:02:59]} 2. d4 {[%clk 0:02:59]}  g6 {[%clk 0:02:59]} 3. g3 {[%clk 0:02:59]}  Bg7 {[%clk 0:03:00]} 4. Bg2 {[%clk 0:03:00]}  O-O {[%clk 0:03:00]} 5. O-O {[%clk 0:03:00]}  d6 {[%clk 0:03:01]} 6. b3 {[%clk 0:03:00]}  e5 {[%clk 0:02:53]} 7. dxe5 {[%clk 0:03:01]}  Ng4 {[%clk 0:02:52]} 8. Bb2 {[%clk 0:03:01]}  Nc6 {[%clk 0:02:53]} 9. Qc1 {[%clk 0:03:01]}  Ngxe5 {[%clk 0:02:50]} 10. c4 {[%clk 0:03:00]}  Re8 {[%clk 0:02:42]} 11. Nc3 {[%clk 0:02:56]}  Nxf3+ {[%clk 0:02:41]} 12. exf3 {[%clk 0:02:38]}  Nd4 {[%clk 0:02:21]} 13. Qd2 {[%clk 0:02:28]}  Bh3 {[%clk 0:02:19]} 14. Ne4 {[%clk 0:02:16]}  Bxg2 {[%clk 0:01:40]} 15. Kxg2 {[%clk 0:02:11]}  c5 {[%clk 0:01:39]} 16. Rad1 {[%clk 0:02:02]}  f5 {[%clk 0:01:36]} 17. Bxd4 {[%clk 0:01:53]}  cxd4 {[%clk 0:01:23]} 18. Ng5 {[%clk 0:01:49]}  d5 {[%clk 0:01:11]} 19. Rfe1 {[%clk 0:01:41]}  Qd7 {[%clk 0:00:57]} 20. Qd3 {[%clk 0:01:35]}  Rac8 {[%clk 0:00:45]} 21. Nh3 {[%clk 0:01:16]}  dxc4 {[%clk 0:00:42]} 22. bxc4 {[%clk 0:01:17]}  Qf7 {[%clk 0:00:19]} 23. Rxe8+ {[%clk 0:01:14]}  Rxe8 {[%clk 0:00:20]} 24. Nf4 {[%clk 0:01:14]}  Rc8 {[%clk 0:00:15]} 25. Rc1 {[%clk 0:00:51]}  Be5 {[%clk 0:00:14]} 26. Ne2 {[%clk 0:00:34]}  b6 {[%clk 0:00:11]} 27. f4 {[%clk 0:00:24]}  Bf6 {[%clk 0:00:11]} 28. Rc2 {[%clk 0:00:23]}  Qb7+ {[%clk 0:00:11]} 29. Kg1 {[%clk 0:00:23]}  Re8 {[%clk 0:00:10]} 30. Qb3 {[%clk 0:00:21]}  Qe4 {[%clk 0:00:09]} 31. c5+ {[%clk 0:00:18]}  Kh8 {[%clk 0:00:09]} 32. f3 {[%clk 0:00:15]}  Qe3+ {[%clk 0:00:05]} 33. Qxe3 {[%clk 0:00:15]}  Rxe3 {[%clk 0:00:05]} 34. c6 {[%clk 0:00:15]}  Re8 {[%clk 0:00:02]} 35. c7 {[%clk 0:00:14]}  Rc8 {[%clk 0:00:02]} 36. Nc1 {[%clk 0:00:14]}  Be7 {[%clk 0:00:02]} 37. Nd3 {[%clk 0:00:09]}  Bc5 {[%clk 0:00:03]} 38. Nxc5 {[%clk 0:00:08]}  Rxc7 {[%clk 0:00:03]} 39. Kf2 {[%clk 0:00:07]}  bxc5 {[%clk 0:00:04]} 40. Rc4 {[%clk 0:00:06]}  d3 {[%clk 0:00:04]} 41. Ke3 {[%clk 0:00:06]}  Rd7 {[%clk 0:00:04]} 42. Kd2 {[%clk 0:00:06]}  Rd5 {[%clk 0:00:05]} 43. Rc3 {[%clk 0:00:06]}  Kg7 {[%clk 0:00:04]} 44. Rxd3 {[%clk 0:00:07]}  Rxd3+ {[%clk 0:00:03]} 45. Kxd3 {[%clk 0:00:08]}  g5 {[%clk 0:00:03]} 46. Kc4 {[%clk 0:00:09]}  gxf4 {[%clk 0:00:03]} 47. gxf4 {[%clk 0:00:10]}  Kg6 {[%clk 0:00:04]} 48. Kxc5 {[%clk 0:00:09]}  Kh5 {[%clk 0:00:05]} 49. Kd5 {[%clk 0:00:10]}  Kh4 {[%clk 0:00:05]} 50. Ke5 {[%clk 0:00:10]}  Kh3 {[%clk 0:00:06]} 51. Kxf5 {[%clk 0:00:10]}  Kxh2 {[%clk 0:00:07]} 52. Kg4 {[%clk 0:00:11]}  Kg2 {[%clk 0:00:06]} 53. f5 {[%clk 0:00:11]}  h5+ {[%clk 0:00:06]} 54. Kxh5 {[%clk 0:00:11]}  Kxf3 {[%clk 0:00:07]} 55. f6 {[%clk 0:00:12]} 1-0


[Site "https://www.chess.com"]

[Event "Titled Tuesday Blitz June 27 Early 2023"]
[White "Yaksin, Oleg"]
[Black "Tanenbaum, Zachary"]
[WhiteFideId "24105880"]
[BlackFideId "2060850"]
[WhiteElo "2557"]
[BlackElo "2739"]
[Result "0-1"]
[Round "4"]
[TimeControl "180+2"]
[Date "2023.06.27"]
[WhiteClock "0:00:34"]
[BlackClock "0:00:50"]
[Board "71"]

1. d4 {[%clk 0:02:57]}  d5 {[%clk 0:02:59]} 2. c4 {[%clk 0:02:58]}  dxc4 {[%clk 0:03:00]} 3. Nf3 {[%clk 0:02:58]}  Nf6 {[%clk 0:03:00]} 4. e3 {[%clk 0:02:59]}  Bg4 {[%clk 0:03:00]} 5. Bxc4 {[%clk 0:02:58]}  e6 {[%clk 0:03:00]} 6. O-O {[%clk 0:02:58]}  Nc6 {[%clk 0:03:00]} 7. Nc3 {[%clk 0:02:58]}  Bd6 {[%clk 0:02:59]} 8. Be2 {[%clk 0:02:58]}  O-O {[%clk 0:02:59]} 9. e4 {[%clk 0:02:55]}  Bxf3 {[%clk 0:02:58]} 10. Bxf3 {[%clk 0:02:52]}  Nxd4 {[%clk 0:02:58]} 11. Be3 {[%clk 0:02:50]}  Be5 {[%clk 0:02:53]} 12. g3 {[%clk 0:02:47]}  Nxf3+ {[%clk 0:02:51]} 13. Qxf3 {[%clk 0:02:46]}  Bxc3 {[%clk 0:02:41]} 14. bxc3 {[%clk 0:02:47]}  Qd3 {[%clk 0:02:41]} 15. Rfe1 {[%clk 0:02:23]}  Qxe4 {[%clk 0:02:32]} 16. Qxe4 {[%clk 0:02:23]}  Nxe4 {[%clk 0:02:33]} 17. Bf4 {[%clk 0:02:24]}  Nxc3 {[%clk 0:02:29]} 18. Bxc7 {[%clk 0:02:24]}  Nd5 {[%clk 0:02:29]} 19. Bd6 {[%clk 0:02:16]}  Rfd8 {[%clk 0:02:29]} 20. Ba3 {[%clk 0:02:15]}  b5 {[%clk 0:02:25]} 21. Bc5 {[%clk 0:02:14]}  a5 {[%clk 0:02:23]} 22. Rab1 {[%clk 0:02:13]}  b4 {[%clk 0:02:23]} 23. a3 {[%clk 0:02:13]}  bxa3 {[%clk 0:01:59]} 24. Bxa3 {[%clk 0:02:14]}  Rab8 {[%clk 0:01:40]} 25. Ra1 {[%clk 0:02:14]}  Nb4 {[%clk 0:01:39]} 26. Re5 {[%clk 0:02:03]}  Rd5 {[%clk 0:01:28]} 27. Re2 {[%clk 0:01:49]}  h6 {[%clk 0:01:26]} 28. Rb1 {[%clk 0:01:49]}  e5 {[%clk 0:01:22]} 29. Re4 {[%clk 0:01:36]}  Rdb5 {[%clk 0:01:21]} 30. Rc1 {[%clk 0:01:28]}  R8b7 {[%clk 0:01:15]} 31. Rc8+ {[%clk 0:01:17]}  Kh7 {[%clk 0:01:14]} 32. Ra8 {[%clk 0:01:16]}  Nc2 {[%clk 0:01:12]} 33. Bd6 {[%clk 0:01:16]}  Nd4 {[%clk 0:01:09]} 34. Kg2 {[%clk 0:01:12]}  f6 {[%clk 0:01:08]} 35. h4 {[%clk 0:01:01]}  h5 {[%clk 0:01:07]} 36. Re1 {[%clk 0:00:55]}  Kg6 {[%clk 0:00:59]} 37. Ra1 {[%clk 0:00:52]}  Nb3 {[%clk 0:00:59]} 38. Ra4 {[%clk 0:00:52]}  Rd5 {[%clk 0:00:57]} 39. Ba3 {[%clk 0:00:44]}  Rd4 {[%clk 0:00:57]} 40. Rxd4 {[%clk 0:00:40]}  exd4 {[%clk 0:00:58]} 41. Kf1 {[%clk 0:00:39]}  d3 {[%clk 0:00:52]} 42. Ke1 {[%clk 0:00:39]}  d2+ {[%clk 0:00:49]} 43. Kd1 {[%clk 0:00:39]}  Rc7 {[%clk 0:00:49]} 44. Rd8 {[%clk 0:00:36]}  Rc1+ {[%clk 0:00:49]} 45. Ke2 {[%clk 0:00:36]}  Re1+ {[%clk 0:00:50]} 46. Kf3 {[%clk 0:00:34]}  d1=Q+ {[%clk 0:00:50]} 0-1


[Site "https://www.chess.com"]

[Event "Titled Tuesday Blitz June 27 Early 2023"]
[White "Osmak, Yuliia"]
[Black "Aradhya, Garg"]
[WhiteFideId "14101602"]
[BlackFideId "25006746"]
[WhiteElo "2505"]
[BlackElo "2722"]
[Result "0-1"]
[Round "4"]
[TimeControl "180+2"]
[Date "2023.06.27"]
[WhiteClock "0:00:00"]
[BlackClock "0:00:07"]
[Board "78"]

1. e4 {[%clk 0:03:00]}  e5 {[%clk 0:03:00]} 2. Nf3 {[%clk 0:02:59]}  Nc6 {[%clk 0:03:00]} 3. Bb5 {[%clk 0:02:58]}  a6 {[%clk 0:03:01]} 4. Ba4 {[%clk 0:02:58]}  Bc5 {[%clk 0:03:01]} 5. O-O {[%clk 0:02:52]}  d6 {[%clk 0:03:01]} 6. c3 {[%clk 0:02:47]}  Bd7 {[%clk 0:03:01]} 7. d4 {[%clk 0:02:46]}  Ba7 {[%clk 0:03:02]} 8. Be3 {[%clk 0:02:33]}  Nf6 {[%clk 0:03:01]} 9. Nbd2 {[%clk 0:02:25]}  O-O {[%clk 0:02:59]} 10. h3 {[%clk 0:02:24]}  Qe8 {[%clk 0:02:32]} 11. Bc2 {[%clk 0:02:20]}  h6 {[%clk 0:02:29]} 12. d5 {[%clk 0:02:09]}  Ne7 {[%clk 0:02:29]} 13. Bxa7 {[%clk 0:02:08]}  Rxa7 {[%clk 0:02:29]} 14. c4 {[%clk 0:02:03]}  Ng6 {[%clk 0:02:29]} 15. Kh2 {[%clk 0:01:55]}  a5 {[%clk 0:02:27]} 16. Ne1 {[%clk 0:01:45]}  c5 {[%clk 0:02:21]} 17. dxc6 {[%clk 0:01:33]}  Bxc6 {[%clk 0:02:20]} 18. f3 {[%clk 0:01:19]}  b5 {[%clk 0:02:16]} 19. Nd3 {[%clk 0:01:14]}  Rb7 {[%clk 0:02:05]} 20. b3 {[%clk 0:01:13]}  Qe7 {[%clk 0:01:55]} 21. Qe1 {[%clk 0:01:10]}  Rc8 {[%clk 0:01:50]} 22. Rd1 {[%clk 0:01:05]}  b4 {[%clk 0:01:40]} 23. Rf2 {[%clk 0:00:58]}  Nf8 {[%clk 0:01:39]} 24. Nf1 {[%clk 0:00:52]}  Ne6 {[%clk 0:01:39]} 25. Ne3 {[%clk 0:00:52]}  Nd4 {[%clk 0:01:39]} 26. Nc1 {[%clk 0:00:48]}  Bd7 {[%clk 0:01:36]} 27. Ne2 {[%clk 0:00:44]}  Nxe2 {[%clk 0:01:11]} 28. Rxe2 {[%clk 0:00:41]}  Be6 {[%clk 0:01:11]} 29. Red2 {[%clk 0:00:40]}  Rd7 {[%clk 0:01:11]} 30. Rd3 {[%clk 0:00:35]}  Qd8 {[%clk 0:01:08]} 31. Qd2 {[%clk 0:00:30]}  Ne8 {[%clk 0:01:08]} 32. Bb1 {[%clk 0:00:18]}  Qb6 {[%clk 0:01:08]} 33. Nd5 {[%clk 0:00:15]}  Bxd5 {[%clk 0:00:59]} 34. exd5 {[%clk 0:00:15]}  a4 {[%clk 0:00:55]} 35. f4 {[%clk 0:00:15]}  axb3 {[%clk 0:00:51]} 36. axb3 {[%clk 0:00:15]}  exf4 {[%clk 0:00:23]} 37. Qxf4 {[%clk 0:00:16]}  Nf6 {[%clk 0:00:23]} 38. Rg3 {[%clk 0:00:15]}  Nh5 {[%clk 0:00:22]} 39. Qg4 {[%clk 0:00:11]}  Nxg3 {[%clk 0:00:19]} 40. Qxd7 {[%clk 0:00:10]}  Rd8 {[%clk 0:00:18]} 41. Qg4 {[%clk 0:00:10]}  Re8 {[%clk 0:00:10]} 42. Qxg3 {[%clk 0:00:10]}  Re2 {[%clk 0:00:09]} 43. Qd3 {[%clk 0:00:09]}  Re3 {[%clk 0:00:08]} 44. Qh7+ {[%clk 0:00:09]}  Kf8 {[%clk 0:00:09]} 45. Qxh6 {[%clk 0:00:00]}  gxh6 {[%clk 0:00:07]} 0-1


[Site "https://www.chess.com"]